fUST/lending_fUST_20241126
["ID","MTS","AMOUNT","RATE_DAILY","PERIOD"]
[343374505,1732609848226,-153.858133,0.00028,7]
[343374507,1732609848236,-151.0,0.00028,7]
[343374509,1732609848246,-151.0,0.00028,7]
[343374511,1732609848256,-151.0,0.00028,7]
[343374513,1732609848266,-151.0,0.00028,7]
[343374515,1732609848276,-151.0,0.00028,7]
[343374517,1732609848286,-151.0,0.00028,7]
[343374519,1732609848295,-200.591424,0.00028,7]
[343374521,1732609848304,-200.591424,0.00028,7]
[343374523,1732609848314,-200.591424,0.00028,7]
[343374525,1732609848324,-200.591424,0.00028,7]
[343374527,1732609848334,-152.275274,0.00028,7]
[343374529,1732609848344,-152.302487,0.00028,7]
[343374531,1732609848354,-151.0,0.00028,7]
[343374533,1732609848363,-151.0,0.00028,7]
[343374535,1732609848373,-366.30022,0.00028,7]
[343374537,1732609848383,-366.30022,0.00028,7]
[343374539,1732609848395,-366.30022,0.00028,7]
[343374541,1732609848405,-366.30022,0.00028,7]
[343374544,1732609848415,-151.0,0.00028,7]
[343374546,1732609848424,-154.515049,0.00028,7]
[343374547,1732609848434,-151.0,0.00028,7]
[343374549,1732609848444,-151.389644,0.00028,7]
[343374551,1732609848454,-152.795366,0.00028,7]
[343374554,1732609848464,-151.635339,0.00028,7]
[343374556,1732609848474,-151.0,0.00028,7]
[343374558,1732609848483,-151.0,0.00028,7]
[343374560,1732609848492,-151.0,0.00028,7]
[343374562,1732609848502,-151.0,0.00028,7]
[343374564,1732609848512,-151.0,0.00028,7]
[343374566,1732609848521,-153.503546,0.00028,7]
[343374567,1732609848531,-151.0,0.00028,7]
[343374570,1732609848540,-151.0,0.00028,7]
[343374572,1732609848550,-151.0,0.00028,7]
[343374574,1732609848559,-153.954184,0.00028,7]
[343374576,1732609848568,-151.0,0.00028,7]
[343374578,1732609848577,-151.0,0.00028,7]
[343374586,1732609848646,-151.0,0.00028,7]
[343374589,1732609848666,-154.271398,0.00028,7]
[343374591,1732609848677,-1581.151241,0.00028,7]
[343374593,1732609848687,-1581.151241,0.00028,7]
[343374595,1732609848696,-768.396032,0.00028,7]
[343374597,1732609848706,-768.396032,0.00028,7]
[343374599,1732609848715,-768.396032,0.00028,7]
[343374601,1732609848725,-768.396032,0.00028,7]
[343374603,1732609848735,-151.0,0.00028,7]
[343374605,1732609848746,-151.0,0.00028,7]
[343374607,1732609848756,-601.432228,0.00028,7]
[343374609,1732609848766,-601.432228,0.00028,7]
[343374611,1732609848777,-601.432228,0.00028,7]
[343374613,1732609848787,-601.432228,0.00028,7]
[343374615,1732609848797,-151.0,0.00028,7]
[343374617,1732609848808,-153.453898,0.00028,7]
[343374619,1732609848819,-626.350774,0.00028,7]
[343374621,1732609848831,-626.350774,0.00028,7]
[343374622,1732609848844,-626.350774,0.00028,7]
[343374623,1732609848854,-626.350774,0.00028,7]
[343374624,1732609848866,-152.132492,0.00028,7]
[343374625,1732609848876,-151.0,0.00028,7]
[343374626,1732609848887,-151.0,0.00028,7]
[343374627,1732609848903,-151.0,0.00028,7]
[343374628,1732609848915,-151.0,0.00028,7]
[343374629,1732609848925,-159.730906,0.00028,7]
[343374630,1732609848936,-175.512356,0.00028,7]
[343374631,1732609848946,-175.512356,0.00028,7]
[343374632,1732609848955,-175.512356,0.00028,7]
[343374633,1732609848965,-175.512356,0.00028,7]
[343374634,1732609848974,-962.081404,0.00028,7]
[343374635,1732609848984,-962.081404,0.00028,7]
[343374637,1732609848994,-962.081404,0.00028,7]
[343374638,1732609849004,-962.081404,0.00028,7]
[343374640,1732609849015,-168.216828,0.00028,7]
[343374642,1732609849025,-168.216828,0.00028,7]
[343374644,1732609849035,-168.216828,0.00028,7]
[343374646,1732609849044,-168.216828,0.00028,7]
[343374648,1732609849053,-252.932433,0.00028,7]
[343374650,1732609849062,-252.932433,0.00028,7]
[343374651,1732609849072,-252.932433,0.00028,7]
[343374653,1732609849081,-252.932433,0.00028,7]
[343374655,1732609849091,-151.0,0.00028,7]
[343374657,1732609849100,-151.0,0.00028,7]
[343374659,1732609849110,-151.0,0.00028,7]
[343374661,1732609849120,-152.135456,0.00028,7]
[343374663,1732609849129,-151.0,0.00028,7]
[343374665,1732609849139,-151.653503,0.00028,7]
[343374667,1732609849154,-384.901263,0.00028,7]
[343374669,1732609849164,-384.901263,0.00028,7]
[343374671,1732609849174,-384.901263,0.00028,7]
[343374673,1732609849183,-384.901263,0.00028,7]
[343374675,1732609849193,-151.0,0.00028,7]
[343374677,1732609849203,-151.0,0.00028,7]
[343374679,1732609849212,-151.0,0.00028,7]
[343374681,1732609849222,-151.0,0.00028,7]
[343374683,1732609849232,-266.4101,0.00028,7]
[343374685,1732609849246,-256.013397,0.00028,7]
[343374687,1732609849258,-256.013397,0.00028,7]
[343374689,1732609849269,-256.013397,0.00028,7]
[343374691,1732609849279,-256.013397,0.00028,7]
[343374693,1732609849289,-151.408098,0.00028,7]
[343374695,1732609849299,-151.0,0.00028,7]
[343374697,1732609849310,-151.0,0.00028,7]
[343374700,1732609849320,-151.0,0.00028,7]
[343374701,1732609849331,-151.0,0.00028,7]
[343374703,1732609849341,-151.0,0.00028,7]
[343374705,1732609849351,-151.0,0.00028,7]
[343374708,1732609849361,-151.0,0.00028,7]
[343374709,1732609849371,-151.0,0.00028,7]
[343374711,1732609849380,-693.834326,0.00028,7]
[343374713,1732609849390,-693.834326,0.00028,7]
[343374715,1732609849408,-151.0,0.00028,7]
[343374718,1732609849420,-151.392349,0.00028,7]
[343374720,1732609849430,-693.834326,0.00028,7]
[343374722,1732609849440,-693.834326,0.00028,7]
[343374724,1732609849449,-256.14495,0.00028,7]
[343374725,1732609849459,-506.24998979,0.0002812,5]
[343374727,1732609849469,-502.3296274,0.00028163,5]
[343374729,1732609849479,-500.0,0.00028163,5]
[343374731,1732609849489,-500.0,0.00028163,5]
[343374734,1732609849499,-500.0,0.00028163,5]
[343374736,1732609849510,-618.79034047,0.0002823,5]
[343374737,1732609849519,-500.0,0.0002823,5]
[343374740,1732609849530,-4706.46140003,0.00028298,7]
[343374741,1732609849539,-1006.69347414,0.00028321,2]
[343374744,1732609849549,-150.246,0.0002839,2]
[343374745,1732609849558,-531.0,0.0002839,2]
[343374747,1732609849568,-1103.0,0.0002839,2]
[343374749,1732609849579,-2378.0,0.0002839,2]
[343374751,1732609849589,-198.647546,0.000285,7]
[343374754,1732609849599,-151.0,0.000285,7]
[343374755,1732609849609,-1581.151241,0.000285,7]
[343374757,1732609849620,-768.396032,0.000285,7]
[343374760,1732609849631,-768.396032,0.000285,7]
[343374762,1732609849641,-151.0,0.000285,7]
[343374763,1732609849660,-601.432228,0.000285,7]
[343374765,1732609849670,-601.432228,0.000285,7]
[343374767,1732609849680,-626.350774,0.000285,7]
[343374769,1732609849690,-626.350774,0.000285,7]
[343374771,1732609849700,-151.0,0.000285,7]
[343374773,1732609849710,-151.0,0.000285,7]
[343374775,1732609849720,-175.512356,0.000285,7]
[343374777,1732609849729,-175.512356,0.000285,7]
[343374779,1732609849739,-962.081404,0.000285,7]
[343374782,1732609849756,-962.081404,0.000285,7]
[343374784,1732609849768,-168.216828,0.000285,7]
[343374786,1732609849777,-168.216828,0.000285,7]
[343374788,1732609849787,-252.932433,0.000285,7]
[343374790,1732609849797,-252.932433,0.000285,7]
[343374792,1732609849807,-153.48611,0.000285,7]
[343374794,1732609849817,-336.42,0.000285,31]
[343374796,1732609849831,-336.42,0.000285,31]
[343374798,1732609849841,-336.42,0.000285,31]
[343374800,1732609849851,-336.42,0.000285,31]
[343374802,1732609849860,-336.42,0.000285,31]
[343374804,1732609849871,-336.42,0.000285,31]
[343374806,1732609849881,-336.42,0.000285,31]
[343374808,1732609849891,-336.42,0.000285,31]
[343374810,1732609849910,-336.42,0.000285,31]
[343374812,1732609849919,-336.42,0.000285,31]
[343374814,1732609849929,-336.42,0.000285,31]
[343374816,1732609849939,-336.42,0.000285,31]
[343374818,1732609849950,-384.901263,0.000285,7]
[343374820,1732609849959,-384.901263,0.000285,7]
[343374822,1732609849969,-151.0,0.000285,7]
[343374824,1732609849978,-500.0,0.000285,31]
[343374826,1732609849987,-300.07809613,0.000285,31]
[343374828,1732609849998,-500.0,0.000285,31]
[343374830,1732609850008,-151.0,0.000285,7]
[343374832,1732609850018,-150.18,0.000285,31]
[343374834,1732609850030,-150.18,0.000285,31]
[343374836,1732609850040,-150.18,0.000285,31]
[343374838,1732609850050,-299.84327093,0.000285,31]
[343374840,1732609850060,-256.013397,0.000285,7]
[343374842,1732609850069,-256.013397,0.000285,7]
[343374844,1732609850078,-151.0,0.000285,7]
[343374845,1732609850087,-267.427225,0.000285,7]
[343374847,1732609850096,-151.0,0.000285,7]
[343374849,1732609850106,-151.0,0.000285,7]
[343374852,1732609850116,-693.834326,0.000285,7]
[343374853,1732609850126,-693.834326,0.000285,7]
[343374855,1732609850135,-150.18,0.000285,31]
[343374857,1732609850151,-150.18,0.000285,2]
[343374859,1732609850161,-150.18,0.000285,31]
[343374861,1732609850171,-150.18,0.000285,2]
[343374863,1732609850180,-500.0,0.000285,31]
[343374865,1732609850190,-500.0,0.000285,31]
[343374867,1732609850199,-500.0,0.000285,31]
[343374869,1732609850209,-500.0,0.000285,31]
[343374871,1732609850219,-150.18,0.000285,2]
[343374873,1732609850228,-152.87522847,0.000285,31]
[343374875,1732609850238,-150.18,0.000285,31]
[343374877,1732609850247,-372.15307172,0.00028521,5]
[343374879,1732609850258,-1002.5679188,0.00028521,5]
[343374881,1732609850268,-587.0,0.00028613,2]
[343374883,1732609850278,-305.31941209,0.0002871,5]
[343374885,1732609850287,-1000.0,0.0002871,5]
[343374887,1732609850296,-501.79895689,0.0002871,5]
[343374889,1732609850306,-500.0,0.00028767,4]
[343374891,1732609850315,-500.0,0.00028774,31]
[343374893,1732609850325,-654.13631529,0.00028774,31]
[343374895,1732609850334,-150.18,0.00028774,31]
[343374897,1732609850343,-150.18,0.00028774,31]
[343374899,1732609850352,-150.18,0.00028774,31]
[343374901,1732609850361,-217.4981977,0.00028774,31]
[343374903,1732609850371,-858.18883392,0.00028774,31]
[343374911,1732609850445,-500.0,0.00028774,31]
[343374913,1732609850455,-500.0,0.00028774,31]
[343374915,1732609850465,-500.0,0.00028774,31]
[343374917,1732609850475,-162.4535374,0.00028774,31]
[343374919,1732609850484,-1000.0,0.00028778,5]
[343374921,1732609850494,-1651.86737722,0.00028852,2]
[343374923,1732609850504,-10000.0,0.0002896,2]
[343374925,1732609850514,-45186.05020382,0.00029,7]
[343374940,1732609850651,-23157.64634683,0.00029,7]
[343374942,1732609850663,-500.0,0.00029,7]
[343374944,1732609850675,-10110.41552001,0.00029,7]
[343375809,1732610048993,60835.999999,0.0001,2]
[343375830,1732610615433,168.857042,0.00013973,2]
[343375834,1732610826104,-712.11132831,0.00022333,2]
[343375835,1732610826129,-3674.31366167,0.00022559,2]
[343375836,1732610826150,-366.1759958,0.00023239,2]
[343375837,1732610826172,-164.452326,0.00023249,2]
[343375838,1732610826313,-503.223605,0.00023577,2]
[343375839,1732610826334,-35.39250828,0.00023994,2]
[343375840,1732610843147,-197.12485597,0.00023994,2]
[343375841,1732610852191,-67.48263575,0.00023994,2]
[343375842,1732610852216,-1543.0,0.00023994,2]
[343375843,1732610852237,-300.0,0.00023995,2]
[343375844,1732610852259,-10676.48359745,0.00023996,2]
[343375916,1732611036318,-174.0,0.00023,2]
[343375918,1732611036327,-300.0,0.00023679,2]
[343375920,1732611036336,-300.0,0.00023679,2]
[343375922,1732611036345,-201.34834189,0.0002368,2]
[343376136,1732611038638,-4433.670183,0.0002368,2]
[343376154,1732611038808,-792.43757874,0.0002368,2]
[343376161,1732611038865,-3006.33531255,0.0002368,2]
[343376320,1732611040570,-9953.64464297,0.0002368,2]
[343376332,1732611040681,-923.79,0.0002368,2]
[343376627,1732611043613,-5588.77394085,0.0002368,2]
[343376629,1732611043623,-5380.2576086,0.0002387,2]
[343376631,1732611043632,-503.223605,0.00024262,2]
[343376633,1732611043642,-520.0,0.000245,30]
[343376635,1732611043651,-152.377,0.00024794,8]
[343376637,1732611043660,-633.49,0.00024794,10]
[343376639,1732611043669,-500.0,0.00024803,2]
[343376641,1732611043679,-500.0,0.00024803,2]
[343376643,1732611043688,-500.03947691,0.00024803,2]
[343376645,1732611043697,-416.00546818,0.00024803,2]
[343376647,1732611043706,-576.82529139,0.00024803,2]
[343376649,1732611043715,-500.0,0.00024803,2]
[343376651,1732611043723,-500.0,0.00024803,2]
[343376653,1732611043733,-299.17029241,0.00024803,2]
[343376655,1732611043743,-500.0,0.00024803,2]
[343376657,1732611043752,-500.0,0.00024803,2]
[343376659,1732611043763,-500.0,0.00024803,2]
[343376661,1732611043772,-500.0,0.00024803,2]
[343376663,1732611043782,-500.0,0.00024803,2]
[343376665,1732611043791,-500.0,0.00024803,2]
[343376667,1732611043800,-500.0,0.00024803,2]
[343376669,1732611043809,-667.06247036,0.00024804,2]
[343376671,1732611043818,-222000.0,0.00024804,2]
[343376673,1732611043827,-503.223605,0.00024947,2]
[343376675,1732611043837,-159.46005084,0.00025,2]
[343376677,1732611043846,-420.0,0.00025687,2]
[343376679,1732611043855,-420.0,0.00026047,2]
[343376681,1732611043865,-507.43665622,0.00027397,2]
[343376683,1732611043873,-10000.0,0.000274,2]
[343376685,1732611043882,-587.0,0.00027865,2]
[343376687,1732611043891,-591.198522,0.00028,7]
[343376689,1732611043901,-591.198522,0.00028,7]
[343376691,1732611043910,-591.198522,0.00028,7]
[343376693,1732611043919,-591.198522,0.00028,7]
[343376695,1732611043929,-151.0,0.00028,7]
[343376697,1732611043938,-152.498596,0.00028,7]
[343376699,1732611043947,-151.0,0.00028,7]
[343376701,1732611043956,-151.0,0.00028,7]
[343376703,1732611043966,-5988.43413023,0.00028267,2]
[343376704,1732611043975,-150.0,0.00028322,2]
[343376705,1732611043995,-531.0,0.00028322,2]
[343376707,1732611044005,-1103.0,0.00028322,2]
[343376708,1732611044015,-2378.0,0.00028322,2]
[343376709,1732611044026,-358.23,0.00028322,2]
[343376711,1732611044035,-150.205,0.00028322,2]
[343376712,1732611044045,-591.198522,0.000285,7]
[343376714,1732611044056,-591.198522,0.000285,7]
[343376716,1732611044067,-151.0,0.000285,7]
[343376717,1732611044076,-296.07,0.000285,31]
[343376719,1732611044086,-296.07,0.000285,31]
[343376721,1732611044097,-296.07,0.000285,31]
[343376723,1732611044107,-296.07,0.000285,31]
[343376725,1732611044116,-296.07,0.000285,31]
[343376726,1732611044126,-296.07,0.000285,31]
[343376728,1732611044136,-296.07,0.000285,31]
[343376730,1732611044145,-296.07,0.000285,31]
[343376732,1732611044154,-296.07,0.000285,31]
[343376733,1732611044165,-296.07,0.000285,31]
[343376734,1732611044176,-296.07,0.000285,31]
[343376735,1732611044187,-296.07,0.000285,31]
[343376736,1732611044198,-467.6575396,0.00028658,30]
[343376737,1732611044207,-5988.43413024,0.00028741,2]
[343376738,1732611044217,-23491.01962484,0.00028906,2]
[343376739,1732611044227,-21335.36052206,0.00029,7]
[343376740,1732611044236,-294.827614,0.00029,7]
[343376741,1732611044249,-294.827614,0.00029,7]
[343376742,1732611044258,-151.0,0.00029,7]
[343376743,1732611044270,-262.189401,0.00029,7]
[343376744,1732611044279,-175.512356,0.00029,7]
[343376745,1732611044289,-175.512356,0.00029,7]
[343376747,1732611044299,-151.0,0.00029,7]
[343376749,1732611044309,-591.198522,0.00029,7]
[343376751,1732611044318,-591.198522,0.00029,7]
[343376753,1732611044328,-151.0,0.00029,7]
[343376755,1732611044338,-168.88866159,0.00029,7]
[343376757,1732611044348,-150.17,0.00029,7]
[343376758,1732611044363,-150.17,0.00029,7]
[343376760,1732611044373,-500.0,0.00029,7]
[343376762,1732611044382,-200.46684024,0.00029,7]
[343376764,1732611044391,-500.0,0.00029,7]
[343376766,1732611044400,-500.0,0.00029,7]
[343376768,1732611044409,-500.0,0.00029,7]
[343376770,1732611044419,-150.17,0.00029,2]
[343376771,1732611044428,-415.09445664,0.00029215,2]
[343376773,1732611044437,-666.0,0.00029215,2]
[343376774,1732611044446,-150.096,0.00029223,2]
[343376776,1732611044455,-150.0,0.00029223,2]
[343376778,1732611044465,-415.0944566,0.00029248,2]
[343376779,1732611044474,-150.17,0.00029274,7]
[343376780,1732611044483,-150.17,0.00029274,7]
[343376781,1732611044495,-500.0,0.00029274,7]
[343376782,1732611044509,-500.0,0.00029274,7]
[343376783,1732611044520,-500.0,0.00029274,7]
[343376784,1732611044530,-500.0,0.00029274,7]
[343376785,1732611044540,-3595.49665811,0.0002928,7]
[343376786,1732611044549,-415.0944566,0.00029281,2]
[343376787,1732611044558,-415.0944566,0.00029313,2]
[343376788,1732611044568,-226.33426974,0.00029314,2]
[343376789,1732611044577,-367.12612451,0.00029314,2]
[343376790,1732611044587,-500.0,0.00029314,2]
[343376791,1732611044596,-189.13133726,0.00029314,2]
[343376792,1732611044605,-525.92269024,0.00029314,2]
[343376793,1732611044615,-294.827614,0.00029315,7]
[343376794,1732611044624,-294.827614,0.00029315,7]
[343376796,1732611044633,-294.827614,0.00029315,7]
[343376797,1732611044642,-294.827614,0.00029315,7]
[343376799,1732611044651,-294.827614,0.00029315,7]
[343376801,1732611044660,-294.827614,0.00029315,7]
[343376802,1732611044669,-294.827614,0.00029315,7]
[343376803,1732611044679,-294.827614,0.00029315,7]
[343376804,1732611044688,-294.827614,0.00029315,7]
[343376805,1732611044697,-294.827614,0.00029315,7]
[343376806,1732611044706,-294.827614,0.00029315,7]
[343376807,1732611044716,-294.827614,0.00029315,7]
[343376808,1732611044725,-294.827614,0.00029315,7]
[343376809,1732611044734,-294.827622,0.00029315,7]
[343376810,1732611044745,-151.0,0.00029315,7]
[343376811,1732611044755,-151.0,0.00029315,7]
[343376812,1732611044763,-151.0,0.00029315,7]
[343376813,1732611044844,-151.0,0.00029315,7]
[343376815,1732611044854,-151.0,0.00029315,7]
[343376817,1732611044863,-151.0,0.00029315,7]
[343376819,1732611044872,-152.797759,0.00029315,7]
[343376821,1732611044882,-503.61018403,0.00029315,2]
[343376822,1732611044892,-175.512356,0.00029315,7]
[343376823,1732611044901,-175.512356,0.00029315,7]
[343376824,1732611044910,-175.512356,0.00029315,7]
[343376826,1732611044920,-175.512356,0.00029315,7]
[343376827,1732611044929,-175.512356,0.00029315,7]
[343376828,1732611044938,-175.512356,0.00029315,7]
[343376829,1732611044947,-175.512356,0.00029315,7]
[343376830,1732611044957,-175.512356,0.00029315,7]
[343376831,1732611044966,-175.512356,0.00029315,7]
[343376832,1732611044976,-175.512356,0.00029315,7]
[343376833,1732611044986,-175.512356,0.00029315,7]
[343376834,1732611044996,-175.512354,0.00029315,7]
[343376835,1732611045005,-151.0,0.00029315,7]
[343376836,1732611045015,-151.0,0.00029315,7]
[343376837,1732611045024,-189.652018,0.00029315,7]
[343376838,1732611045034,-1343.978555,0.00029315,7]
[343376839,1732611045044,-1343.978555,0.00029315,7]
[343376840,1732611045053,-1343.978552,0.00029315,7]
[343376841,1732611045062,-506.6346211,0.00029315,2]
[343376842,1732611045071,-501.10325114,0.00029315,2]
[343376843,1732611045081,-501.52556108,0.00029315,2]
[343376844,1732611045091,-555.56102397,0.00029315,2]
[343376845,1732611045101,-591.198522,0.00029315,7]
[343376846,1732611045110,-591.198522,0.00029315,7]
[343376847,1732611045120,-591.198522,0.00029315,7]
[343376848,1732611045129,-591.198522,0.00029315,7]
[343376849,1732611045139,-591.198522,0.00029315,7]
[343376850,1732611045148,-591.198522,0.00029315,7]
[343376851,1732611045158,-591.198522,0.00029315,7]
[343376852,1732611045167,-591.198522,0.00029315,7]
[343376853,1732611045177,-591.198522,0.00029315,7]
[343376854,1732611045190,-591.198522,0.00029315,7]
[343376855,1732611045200,-591.198522,0.00029315,7]
[343376856,1732611045209,-591.198518,0.00029315,7]
[343376857,1732611045218,-501.91434071,0.00029315,2]
[343376858,1732611045229,-501.8473598,0.00029315,2]
[343376859,1732611045238,-501.10441672,0.00029315,2]
[343376860,1732611045252,-500.0,0.00029315,2]
[343376861,1732611045263,-502.73225548,0.00029315,2]
[343376862,1732611045273,-500.0,0.00029315,2]
[343376863,1732611045282,-551.53696571,0.00029315,2]
[343376864,1732611045292,-500.0,0.00029315,2]
[343376865,1732611045302,-500.0,0.00029315,2]
[343376866,1732611045311,-501.63206971,0.00029315,2]
[343376867,1732611045319,-297.8303635,0.00029315,2]
[343376868,1732611045328,-291.95178032,0.00029315,2]
[343376869,1732611045338,-264.65852055,0.00029315,2]
[343376870,1732611045347,-183.132638,0.00029315,7]
[343376871,1732611045356,-440.56530656,0.00029315,2]
[343376872,1732611045366,-504.17465537,0.00029315,2]
[343376873,1732611045375,-502.37267169,0.00029315,2]
[343376874,1732611045385,-501.5173233,0.00029315,2]
[343376875,1732611045394,-501.14730886,0.00029315,2]
[343376876,1732611045403,-500.0,0.00029315,2]
[343376877,1732611045412,-500.0,0.00029315,2]
[343376878,1732611045421,-500.0,0.00029315,2]
[343376879,1732611045430,-500.0,0.00029315,2]
[343376880,1732611045439,-500.0,0.00029315,2]
[343376881,1732611045448,-280.23209301,0.00029315,2]
[343376882,1732611045457,-156.70247719,0.00029315,2]
[343376883,1732611045469,-300.590176,0.00029315,7]
[343376884,1732611045479,-300.590176,0.00029315,7]
[343376885,1732611045488,-300.590176,0.00029315,7]
[343376886,1732611045506,-300.590176,0.00029315,7]
[343376887,1732611045515,-300.590176,0.00029315,7]
[343376888,1732611045524,-300.590176,0.00029315,7]
[343376889,1732611045532,-300.590176,0.00029315,7]
[343376890,1732611045541,-300.590176,0.00029315,7]
[343376891,1732611045551,-300.590176,0.00029315,7]
[343376892,1732611045560,-300.590176,0.00029315,7]
[343376893,1732611045569,-300.590176,0.00029315,7]
[343376894,1732611045578,-300.590176,0.00029315,7]
[343376895,1732611045587,-300.590176,0.00029315,7]
[343376896,1732611045596,-300.590176,0.00029315,7]
[343376897,1732611045605,-300.590176,0.00029315,7]
[343376898,1732611045615,-300.590176,0.00029315,7]
[343376899,1732611045623,-500.91217049,0.00029315,2]
[343376900,1732611045633,-509.05399281,0.00029315,2]
[343376901,1732611045641,-502.82576794,0.00029315,2]
[343376902,1732611045651,-502.63410834,0.00029315,2]
[343376903,1732611045659,-533.69714732,0.00029315,2]
[343376904,1732611045668,-500.0,0.00029315,2]
[343376905,1732611045677,-500.0,0.00029315,2]
[343376906,1732611045686,-500.0,0.00029315,2]
[343376907,1732611045696,-500.0,0.00029315,2]
[343376908,1732611045705,-281.343388,0.00029315,2]
[343376909,1732611045713,-508.56416449,0.00029315,2]
[343376910,1732611045722,-416.34657641,0.00029315,2]
[343376911,1732611045732,-500.0,0.00029315,2]
[343376912,1732611045741,-500.0,0.00029315,2]
[343376913,1732611045756,-500.0,0.00029315,2]
[343376914,1732611045765,-500.0,0.00029315,2]
[343376915,1732611045775,-504.00896063,0.00029315,2]
[343376916,1732611045786,-500.0,0.00029315,2]
[343376917,1732611045795,-500.0,0.00029315,2]
[343376918,1732611045804,-500.0,0.00029315,2]
[343376919,1732611045814,-174.04,0.00029315,2]
[343376920,1732611045823,-501.68389098,0.00029315,2]
[343376921,1732611045833,-510.84868705,0.00029315,2]
[343376922,1732611045843,-575.42239163,0.00029315,2]
[343376924,1732611045853,-501.99265765,0.00029315,2]
[343376926,1732611045863,-151.0,0.00029315,7]
[343376928,1732611045872,-151.0,0.00029315,7]
[343376930,1732611045881,-151.0,0.00029315,7]
[343376932,1732611045891,-307.96642716,0.00029315,2]
[343376934,1732611045900,-257.64458,0.00029315,7]
[343376936,1732611045909,-500.0,0.00029315,2]
[343376937,1732611045918,-500.0,0.00029315,2]
[343376938,1732611045928,-500.0,0.00029315,2]
[343376939,1732611045937,-500.0,0.00029315,2]
[343376940,1732611045947,-500.0,0.00029315,2]
[343376941,1732611045956,-501.45871963,0.00029315,2]
[343376942,1732611045965,-500.0,0.00029315,2]
[343376943,1732611045973,-460.75569167,0.00029315,2]
[343376945,1732611045983,-160.47314,0.00029315,7]
[343376946,1732611045996,-160.47314,0.00029315,7]
[343376949,1732611046006,-517.23641252,0.00029315,2]
[343376952,1732611046016,-160.47314,0.00029315,7]
[343376953,1732611046025,-160.47314,0.00029315,7]
[343376955,1732611046035,-160.47314,0.00029315,7]
[343376956,1732611046044,-160.47314,0.00029315,7]
[343376957,1732611046053,-160.47314,0.00029315,7]
[343376958,1732611046062,-160.47314,0.00029315,7]
[343376959,1732611046071,-503.78205154,0.00029315,2]
[343376960,1732611046080,-160.47314,0.00029315,7]
[343376961,1732611046090,-160.47314,0.00029315,7]
[343376962,1732611046099,-160.47314,0.00029315,7]
[343376963,1732611046108,-508.38758935,0.00029315,2]
[343376964,1732611046117,-160.47314,0.00029315,7]
[343376965,1732611046127,-160.47314,0.00029315,7]
[343376966,1732611046136,-160.47314,0.00029315,7]
[343376967,1732611046145,-160.47314,0.00029315,7]
[343376968,1732611046155,-160.47314,0.00029315,7]
[343376969,1732611046165,-500.0,0.00029315,2]
[343376970,1732611046175,-501.17158681,0.00029315,2]
[343376971,1732611046184,-500.0,0.00029315,2]
[343376972,1732611046197,-344.65409085,0.00029315,2]
[343376973,1732611046206,-502.56819564,0.00029315,2]
[343376974,1732611046216,-198.79562794,0.00029315,2]